fUST/lending_fUST_20240126
["ID","MTS","AMOUNT","RATE_DAILY","PERIOD"]
[312798925,1706260249311,-151.0,0.00033072,2]
[312798926,1706260249320,-151.0,0.00033072,2]
[312798927,1706260249329,-285.531711,0.00033072,2]
[312798928,1706260249339,-158.130944,0.00033108,2]
[312798929,1706260249350,-150.0,0.00033665,2]
[312798930,1706260249361,-12770.92426487,0.00034,2]
[312798931,1706260249371,-168.71295726,0.00034,7]
[312798932,1706260249381,-151.0,0.00034,2]
[312798933,1706260249390,-151.0,0.00034,2]
[312798934,1706260249400,-151.0,0.00034,2]
[312798935,1706260249411,-151.0,0.00034,2]
[312798936,1706260249421,-319.916165,0.00034,2]
[312798937,1706260249430,-319.916165,0.00034,2]
[312798938,1706260249440,-151.0,0.00034,2]
[312798939,1706260249449,-285.531711,0.00034051,2]
[312798940,1706260249459,-1821.86366752,0.00034177,2]
[312798941,1706260249469,-158.130944,0.0003423,2]
[312798942,1706260249478,-21442.07936553,0.00034443,2]
[312798943,1706260249488,-6955.186272,0.00034443,2]
[312798944,1706260249497,-6955.186272,0.00034443,2]
[312798945,1706260249507,-151.0,0.00034443,2]
[312798946,1706260249516,-151.0,0.00034443,2]
[312798947,1706260249525,-151.0,0.00034443,2]
[312798948,1706260249535,-176.0,0.00034521,2]
[312798949,1706260249545,-178.84399038,0.00034625,2]
[312798950,1706260249556,-170.20026817,0.00034734,2]
[312798951,1706260249565,-592.53064848,0.00035,2]
[312798952,1706260249575,-660.34126829,0.00035,7]
[312798953,1706260249585,-262.45122808,0.00035,4]
[312798954,1706260249595,-2000.0,0.00035,11]
[312798955,1706260249604,-2000.0,0.0003501,11]
[312798956,1706260249614,-151.0,0.0003501,2]
[312798957,1706260249626,-151.0,0.0003501,2]
[312798958,1706260249635,-319.916165,0.0003501,2]
[312798959,1706260249645,-319.916165,0.0003501,2]
[312798960,1706260249655,-151.0,0.0003501,2]
[312798961,1706260249666,-151.0,0.0003502,2]
[312798962,1706260249675,-2000.0,0.0003502,11]
[312798963,1706260249683,-285.531711,0.00035029,2]
[312798964,1706260249693,-2000.0,0.0003503,11]
[312798965,1706260249702,-151.0,0.0003504,2]
[312798966,1706260249714,-2000.0,0.0003504,11]
[312798967,1706260249724,-2000.0,0.0003505,11]
[312798968,1706260249733,-2000.0,0.0003506,12]
[312798969,1706260249742,-2000.0,0.0003507,12]
[312798970,1706260249751,-2000.0,0.0003508,12]
[312798971,1706260249760,-2000.0,0.0003509,12]
[312798972,1706260249769,-2526.34388,0.000351,12]
[312798973,1706260249778,-22.84048505,0.00035127,2]
[312798974,1706260249787,-158.130944,0.00035353,2]
[312798975,1706260249797,-5000.0,0.00035637,7]
[312798976,1706260249806,-155.91130008,0.00035741,4]
[312798977,1706260249817,-5000.0,0.0003577,7]
[312798978,1706260249826,-5000.0,0.0003577,7]
[312798979,1706260249835,-5000.0,0.0003577,7]
[312798980,1706260249844,-5000.0,0.0003577,7]
[312798981,1706260249853,-5000.0,0.0003577,7]
[312798982,1706260249862,-6955.186272,0.0003577,2]
[312798983,1706260249871,-6955.186272,0.0003577,2]
[312798984,1706260249880,-151.0,0.0003577,2]
[312798985,1706260249889,-151.0,0.0003577,2]
[312798986,1706260249898,-151.0,0.0003577,2]
[312798987,1706260249908,-155.47550951,0.00035843,2]
[312798988,1706260249917,-625.14119062,0.00035843,4]
[312798989,1706260249929,-637.19789394,0.00035844,2]
[312798990,1706260249938,-154.98450155,0.00035844,4]
[312798991,1706260249947,-1416.02167727,0.00035845,4]
[312798992,1706260249956,-3489.23072163,0.00035845,4]
[312798993,1706260249965,-178.72198022,0.00035845,4]
[312798994,1706260249974,-275.06063302,0.00035845,4]
[312798995,1706260249984,-151.0,0.00035845,2]
[312798996,1706260249993,-151.0,0.00035845,2]
[312798997,1706260250002,-319.916165,0.00035845,2]
[312798998,1706260250012,-319.916165,0.00035845,2]
[312798999,1706260250021,-151.0,0.00035845,2]
[312799000,1706260250031,-500.0,0.00035945,3]
[312799001,1706260250040,-151.0,0.00035987,2]
[312799002,1706260250050,-5000.0,0.00035988,7]
[312799003,1706260250060,-5000.0,0.00035988,7]
[312799004,1706260250069,-5000.0,0.00035988,7]
[312799005,1706260250078,-5000.0,0.00035988,7]
[312799006,1706260250087,-5000.0,0.00035988,7]
[312799007,1706260250096,-5000.0,0.00035988,7]
[312799008,1706260250106,-5000.0,0.00035988,7]
[312799009,1706260250116,-5000.0,0.00035988,7]
[312799010,1706260250125,-5000.0,0.00035988,7]
[312799011,1706260250134,-151.0,0.00035988,2]
[312799012,1706260250143,-151.0,0.00035988,2]
[312799013,1706260250153,-226.96975,0.00035988,2]
[312799014,1706260250163,-151.0,0.00035988,2]
[312799015,1706260250172,-151.0,0.00035988,2]
[312799016,1706260250181,-151.0,0.00035988,2]
[312799017,1706260250191,-151.0,0.00035988,2]
[312799018,1706260250201,-319.916165,0.00035988,2]
[312799019,1706260250210,-319.916165,0.00035988,2]
[312799020,1706260250219,-319.916165,0.00035988,2]
[312799021,1706260250228,-319.916165,0.00035988,2]
[312799022,1706260250238,-151.0,0.00035988,2]
[312799023,1706260250248,-151.0,0.00035988,2]
[312799024,1706260250258,-6955.186272,0.00035988,2]
[312799025,1706260250268,-6955.186272,0.00035988,2]
[312799026,1706260250279,-6955.186272,0.00035988,2]
[312799027,1706260250290,-6955.186272,0.00035988,2]
[312799028,1706260250301,-151.0,0.00035988,2]
[312799029,1706260250311,-151.0,0.00035988,2]
[312799030,1706260250320,-151.0,0.00035988,2]
[312799031,1706260250330,-151.0,0.00035988,2]
[312799032,1706260250339,-151.0,0.00035988,2]
[312799033,1706260250350,-245.714816,0.00035988,2]
[312799034,1706260250359,-285.531711,0.00036008,2]
[312799035,1706260250370,-158.130944,0.00036475,2]
[312799036,1706260250381,-150.0,0.00036665,2]
[312799037,1706260250391,-285.531711,0.00036986,2]
[312799038,1706260250400,-485619.27189,0.00037,2]
[312799039,1706260250410,-17396.11506409,0.00037,2]
[312799040,1706260250419,-157.949465,0.00037,2]
[312799041,1706260250428,-151.0,0.00037,2]
[312799042,1706260250437,-319.916165,0.00037,2]
[312799043,1706260250447,-319.916165,0.00037,2]
[312799044,1706260250456,-151.0,0.00037,2]
[312799045,1706260250465,-6955.186272,0.00037,2]
[312799046,1706260250475,-6955.186272,0.00037,2]
[312799047,1706260250485,-151.0,0.00037,2]
[312799048,1706260250494,-151.0,0.00037,2]
[312799049,1706260250503,-160.29837334,0.000375,45]
[312799050,1706260250512,-158.130944,0.00037597,2]
[312799051,1706260250522,-585.10004292,0.0003762,15]
[312799052,1706260250531,-500.0,0.0003762,15]
[312799053,1706260250540,-498.83167863,0.0003762,15]
[312799054,1706260250549,-500.0,0.0003762,15]
[312799055,1706260250559,-500.0,0.0003762,15]
[312799056,1706260250568,-500.0,0.0003762,15]
[312799057,1706260250577,-500.0,0.0003762,15]
[312799058,1706260250586,-500.0,0.0003762,15]
[312799059,1706260250595,-344.41769991,0.0003762,15]
[312799060,1706260250604,-500.0,0.0003762,15]
[312799061,1706260250613,-500.0,0.0003762,15]
[312799062,1706260250623,-500.0,0.0003762,15]
[312799063,1706260250632,-500.0,0.0003762,15]
[312799064,1706260250641,-500.0,0.0003762,15]
[312799065,1706260250650,-500.0,0.0003762,15]
[312799066,1706260250660,-500.0,0.0003762,15]
[312799067,1706260250669,-500.0,0.0003762,15]
[312799068,1706260250679,-500.0,0.0003762,15]
[312799069,1706260250688,-431.5340945,0.0003762,15]
[312799070,1706260250698,-500.0,0.0003762,15]
[312799071,1706260250708,-500.0,0.0003762,15]
[312799072,1706260250718,-500.0,0.0003762,15]
[312799073,1706260250728,-500.0,0.0003762,15]
[312799074,1706260250737,-500.0,0.0003762,15]
[312799075,1706260250746,-500.0,0.0003762,15]
[312799076,1706260250755,-500.0,0.0003762,15]
[312799077,1706260250764,-500.0,0.0003762,15]
[312799078,1706260250773,-500.0,0.0003762,15]
[312799079,1706260250782,-500.0,0.0003762,15]
[312799080,1706260250791,-449.79408516,0.0003762,15]
[312799081,1706260250800,-500.0,0.0003762,15]
[312799082,1706260250809,-500.0,0.0003762,15]
[312799083,1706260250818,-500.0,0.0003762,15]
[312799084,1706260250828,-500.0,0.0003762,15]
[312799085,1706260250837,-500.0,0.0003762,15]
[312799086,1706260250846,-500.0,0.0003762,15]
[312799087,1706260250856,-500.0,0.0003762,15]
[312799088,1706260250866,-500.0,0.0003762,15]
[312799089,1706260250875,-500.0,0.0003762,15]
[312799090,1706260250884,-500.0,0.0003762,15]
[312799091,1706260250894,-500.0,0.0003762,15]
[312799092,1706260250903,-500.0,0.0003762,15]
[312799093,1706260250912,-500.0,0.0003762,15]
[312799094,1706260250921,-500.0,0.0003762,15]
[312799095,1706260250931,-291.08591247,0.0003762,15]
[312799096,1706260250940,-500.0,0.0003762,15]
[312799097,1706260250950,-500.0,0.0003762,15]
[312799098,1706260250959,-75380.29309,0.00037621,4]
[312799099,1706260250968,-50000.0,0.00037624,3]
[312799100,1706260250977,-151.0,0.00037624,2]
[312799101,1706260250986,-319.916165,0.00037624,2]
[312799102,1706260250995,-319.916165,0.00037624,2]
[312799103,1706260251004,-151.0,0.00037624,2]
[312799104,1706260251013,-6955.186272,0.00037624,2]
[312799105,1706260251022,-6955.186272,0.00037624,2]
[312799106,1706260251032,-151.0,0.00037624,2]
[312799107,1706260251041,-151.0,0.00037624,2]
[312799108,1706260251050,-285.531711,0.00037965,2]
[312799109,1706260251060,-8000.0,0.000382,5]
[312799110,1706260251070,-4000.0,0.000382,5]
[312799111,1706260251080,-319.916165,0.00038442,2]
[312799112,1706260251089,-319.916165,0.00038442,2]
[312799113,1706260251098,-151.0,0.00038442,2]
[312799114,1706260251108,-154.8915759,0.00038548,7]
[312799115,1706260251118,-6955.186272,0.00038594,2]
[312799116,1706260251127,-6955.186272,0.00038594,2]
[312799117,1706260251137,-151.0,0.00038594,2]
[312799118,1706260251146,-260.153261,0.00038594,2]
[312799119,1706260251155,-3018.64,0.00038594,2]
[312799120,1706260251165,-3018.64,0.00038594,2]
[312799121,1706260251174,-3018.64,0.00038594,2]
[312799122,1706260251183,-3018.64,0.00038594,2]
[312799123,1706260251192,-3018.64,0.00038594,2]
[312799124,1706260251282,-3018.64,0.00038594,2]
[312799125,1706260251301,-3018.64,0.00038594,2]
[312799126,1706260251311,-3018.64,0.00038594,2]
[312799127,1706260251321,-3018.64,0.00038594,2]
[312799128,1706260251330,-3018.64,0.00038594,2]
[312799129,1706260251340,-67993.21712589,0.00038595,2]
[312799130,1706260251349,-319.916165,0.00038595,2]
[312799131,1706260251359,-319.91617471,0.00038595,2]
[312799132,1706260251368,-753.621768,0.00038595,2]
[312799133,1706260251377,-151.0,0.00038595,2]
[312799134,1706260251388,-6955.186272,0.00038595,2]
[312799135,1706260251397,-6955.186269,0.00038595,2]
[312799136,1706260251406,-151.0,0.00038595,2]
[312799137,1706260251415,-5000.0,0.00038597,7]
[312799138,1706260251424,-25248.87054854,0.00038597,2]
[312799139,1706260251433,-11755.48880393,0.00038597,2]
[312799140,1706260251442,-5000.0,0.00038597,7]
[312799141,1706260251451,-8337.75088382,0.00038597,2]
[312799142,1706260251460,-23790.99032021,0.00038597,3]
[312799143,1706260251469,-151.0,0.00038597,2]
[312799144,1706260251478,-158.130944,0.0003872,2]
[312799145,1706260251487,-9539.58935439,0.00038733,2]
[312799146,1706260251496,-2157.92781168,0.00038787,4]
[312799147,1706260251506,-2292.10629782,0.00038787,4]
[312799148,1706260251515,-496.358488,0.000388,20]
[312799149,1706260251525,-5000.0,0.00038805,7]
[312799150,1706260251536,-5000.0,0.00038805,7]
[312799151,1706260251546,-285.531711,0.00038943,2]
[312799152,1706260251558,-150.89437394,0.00039,4]
[312799153,1706260251569,-1131.34,0.00039222,2]
[312799154,1706260251578,-1664.159104,0.00039315,4]
[312799155,1706260251588,-150.1,0.00039496,2]
[312799156,1706260251597,-150.0,0.00039665,2]
[312799157,1706260251606,-155.19730661,0.0003971,4]
[312799158,1706260251615,-593.67450452,0.0003971,4]
[312799159,1706260251624,-611.07842841,0.00039711,4]
[312799160,1706260251634,-215.17154328,0.00039711,4]
[312799161,1706260251643,-156.41084233,0.00039712,4]
[312799162,1706260251652,-155.72662246,0.00039712,4]
[312799163,1706260251661,-155.89937422,0.00039712,4]
[312799164,1706260251670,-525.24995739,0.00039712,4]
[312799165,1706260251679,-155.14651112,0.00039712,4]
[312799166,1706260251688,-384.82776051,0.00039712,4]
[312799167,1706260251698,-332.88021891,0.00039712,4]
[312799168,1706260251710,-150.89437394,0.00039796,2]
[312799169,1706260251719,-158.130944,0.00039842,2]
[312799170,1706260251728,-285.531711,0.00039922,2]
[312799171,1706260251738,-500.0,0.00039989,31]
[312799172,1706260251748,-500.0,0.00039989,31]
[312799173,1706260251757,-538.29288382,0.00039989,31]
[312799174,1706260251766,-500.0,0.00039989,31]
[312799175,1706260251776,-500.0,0.00039989,15]
[312799176,1706260251785,-500.0,0.00039989,15]
[312799177,1706260251796,-500.0,0.00039989,15]
[312799178,1706260251806,-500.0,0.00039989,15]
[312799179,1706260251815,-500.0,0.00039989,15]
[312799180,1706260251824,-500.0,0.00039989,15]
[312799181,1706260251834,-500.0,0.00039989,15]
[312799182,1706260251845,-500.0,0.00039989,15]
[312799183,1706260251855,-500.0,0.00039989,15]
[312799184,1706260251865,-494.95491504,0.00039989,15]
[312799185,1706260251875,-500.0,0.00039989,15]
[312799186,1706260251886,-500.0,0.00039989,15]
[312799187,1706260251896,-500.0,0.00039989,15]
[312799188,1706260251906,-500.0,0.00039989,15]
[312799189,1706260251915,-334.78754474,0.00039989,15]
[312799190,1706260251926,-500.0,0.00039989,15]
[312799191,1706260251935,-500.0,0.00039989,15]
[312799192,1706260251946,-538.09969476,0.00039989,15]
[312799193,1706260251955,-500.0,0.00039989,15]
[312799194,1706260251964,-500.0,0.00039989,15]
[312799195,1706260251974,-549.26240431,0.00039989,15]
[312799196,1706260251983,-500.0,0.00039989,15]
[312799197,1706260251993,-500.0,0.00039989,15]
[312799198,1706260252002,-500.0,0.00039989,15]
[312799199,1706260252012,-500.0,0.00039989,15]
[312799200,1706260252022,-322.06515781,0.00039989,15]
[312799201,1706260252032,-500.0,0.00039989,15]
[312799202,1706260252042,-500.0,0.00039989,15]
[312799203,1706260252051,-500.0,0.00039989,15]
[312799204,1706260252060,-500.0,0.00039989,15]
[312799205,1706260252070,-500.0,0.00039989,15]
[312799206,1706260252080,-500.0,0.00039989,15]
[312799207,1706260252089,-500.0,0.00039989,15]
[312799208,1706260252099,-500.0,0.00039989,15]
[312799209,1706260252109,-500.0,0.00039989,15]
[312799210,1706260252119,-500.0,0.00039989,15]
[312799211,1706260252128,-10439.78504956,0.0003999,2]
[312799212,1706260252138,-4042.61269998,0.0003999,4]
[312799213,1706260252148,-1231.27454549,0.0004,2]
[312799214,1706260252158,-286.47684487,0.0004,10]
[312799215,1706260252167,-477.98885201,0.0004,2]
[312799216,1706260252177,-324.72154837,0.0004,4]
[312799217,1706260252186,-2926.56901919,0.0004,2]
[312799218,1706260252196,-500.6184982,0.0004,5]
[312799219,1706260252205,-1999.99999907,0.0004,2]
[312799220,1706260252215,-2000.0,0.0004,27]
[312799221,1706260252225,-200.0,0.0004,4]
[312799222,1706260252234,-2000.0,0.0004001,27]
[312799223,1706260252243,-2000.0,0.0004002,27]
[312799224,1706260252252,-3538.395665,0.0004003,27]
[312799225,1706260252263,-58601.88877712,0.00040314,30]
[312799226,1706260252351,-41398.11122288,0.00040314,30]
[312799227,1706260252361,-285.531711,0.000409,2]
[312799228,1706260252372,-158.130944,0.00040964,2]
[312799229,1706260252382,-150.9022017,0.00041,10]
[312799230,1706260252392,-959.6323207,0.00041,2]
[312799231,1706260252402,-9285.21102855,0.00041,2]
[312799232,1706260252412,-500.0,0.00041095,2]
[312799233,1706260252422,-151.91582442,0.00041095,7]
[312799234,1706260252433,-401.38662488,0.00041096,30]
[312799235,1706260252443,-240.22878,0.00041136,30]
[312799236,1706260252454,-163.343131,0.00041136,30]
[312799237,1706260252465,-163.189884,0.00041136,30]
[312799238,1706260252476,-166.4299658,0.000414,45]
[312799239,1706260252486,-4083.73091832,0.00041528,15]
[312799240,1706260252499,-916.26908168,0.00041528,15]
[312799241,1706260252510,-305.13937047,0.00041597,5]
[312799242,1706260341104,-346.18174268,0.000299,2]
[312799243,1706260341133,-949.87454992,0.000299,2]
[312799244,1706260341159,-299.9437074,0.000299,7]
[312799245,1706260414445,-5829.0,0.000299,7]
[312799246,1706260484691,-9285.0,0.000299,7]
[312799248,1706260616411,-10557.36157744,0.000299,7]
[312799249,1706260616433,-155.29114708,0.000299,2]
[312799250,1706260616455,-764.62995522,0.000299,2]
[312799251,1706260616476,-3193.90222825,0.000299,2]
[312799252,1706260616497,-1827.38712364,0.000299,2]
[312799253,1706260616518,-171.319026,0.00030137,2]
[312799254,1706260616539,-150.89437394,0.00031597,120]
[312799255,1706260616560,-243.016312,0.00031791,2]
[312799256,1706260616580,-2373.20128333,0.00031899,2]
[312799257,1706260616600,-176.135036,0.000319,4]
[312799258,1706260616621,-154.8915759,0.00032,4]
[312799259,1706260616642,-2493.21216291,0.00032099,4]
[312799260,1706260616663,-3784.36471692,0.00032099,4]
[312799261,1706260616683,-576.0,0.000321,2]
[312799262,1706260616705,-150.89437394,0.00032242,30]
[312799263,1706260616727,-150.89437394,0.000329,7]
[312799264,1706260616748,-171.319026,0.00033562,2]
[312799265,1706260616770,-150.89437394,0.00033571,4]
[312799266,1706260616790,-14152.39133355,0.00034021,2]
[312799344,1706261432393,-154.8915759,0.00030136,4]
[312799345,1706261432402,-159.897758,0.00030137,2]
[312799346,1706261432411,-150.87929656,0.00032367,120]
[312799347,1706261432420,-3784.36471692,0.00032843,4]
[312799348,1706261432429,-2251.29492791,0.00032844,2]
[312799349,1706261432441,-309.61304631,0.00032844,2]
[312799350,1706261432453,-346.18174268,0.00032844,2]
[312799381,1706261439038,-4787.42825885,0.00032844,2]
[312799388,1706261439093,-17205.48202425,0.00032844,2]
[312799390,1706261439103,-150.87929656,0.00033028,30]
[312799391,1706261439112,-159.897758,0.00033562,2]
[312799393,1706261439122,-150.87929656,0.00033702,7]
[312799395,1706261439131,-1275.30456726,0.00034011,2]
[312799397,1706261439140,-1027.33391297,0.00034021,2]
[312799399,1706261439150,-2455.22262293,0.00034021,2]
[312799401,1706261439160,-3546.30580631,0.00034021,4]
[312799486,1706261443616,-744.92559441,0.00034021,4]
[312799488,1706261443625,-454.77590654,0.00034021,4]
[312799489,1706261443634,-150.87929656,0.0003439,4]
[312799490,1706261443643,-174.21960801,0.00034764,2]
[312799491,1706261443652,-194.80395753,0.00034764,2]
[312799492,1706261443661,-421.33130722,0.00034791,2]
[312799493,1706261443671,-592.53064848,0.0003509,2]
[312799494,1706261443680,-150.87929656,0.00035091,2]
[312799495,1706261443689,-154.8915759,0.00035357,7]
[312799496,1706261443698,-5000.0,0.00035637,7]
[312799497,1706261443707,-576.0,0.000357,2]
[312799498,1706261443716,-158.130944,0.00035744,2]
[312799499,1706261443725,-500.0,0.00035945,3]
[312799500,1706261443735,-159.897758,0.00036986,2]
[312799501,1706261443743,-2354.88475286,0.00038206,2]
[312799502,1706261443752,-3178.34643566,0.00038206,3]
[312799528,1706261446793,-1313.37229048,0.00038206,3]
[312799529,1706261446804,-663.62770952,0.00038206,3]
[312799530,1706261446852,-1777.92637173,0.00038206,3]
[312799531,1706261446861,-674.44035029,0.00038206,2]
[312799532,1706261446869,-899.25477711,0.00038206,2]
[312799533,1706261446878,-1734.12568939,0.00038206,2]
[312799552,1706262345112,10000.0,0.00029,30]
[312799559,1706262533870,-1638.0,0.00028655,10]
[312799606,1706262635193,-1642.32139047,0.00028555,2]
[312799608,1706262635202,-102.87131695,0.00028655,10]
[312799610,1706262635211,-764.62995522,0.00028655,2]
[312799612,1706262635221,-3193.90222825,0.00028655,2]
[312799613,1706262635230,-244.39344907,0.00030136,4]
[312799615,1706262635240,-688.95190791,0.00030136,4]
[312799617,1706262635249,-159.897759,0.00030137,2]
[312799619,1706262635259,-154.8915759,0.00032475,2]
[312799621,1706262635269,-592.53064848,0.00035,2]
[312799622,1706262635279,-186.0567827,0.00035378,2]
[312799624,1706262635289,-3868.27937153,0.00036554,2]
[312799668,1706262640964,-322.43,0.00036554,2]
[312799796,1706262642119,-399.15894337,0.00036554,2]
[312799798,1706262642131,-344.819322,0.00036554,2]
[312799801,1706262642142,-19965.3123631,0.00036554,2]
[312799803,1706262642151,-849.0,0.000366,2]
[312799805,1706262642161,-747.9380369,0.00037616,2]
[312799990,1706262643773,-229.88135456,0.00037616,2]
[312799992,1706262643782,-1275.30456726,0.00038195,2]
[312799994,1706262643791,-987.32346049,0.00038206,2]
[312799996,1706262643801,-454.77590654,0.00038206,4]
[312799998,1706262643810,-1775.45848104,0.00038206,2]
[312800000,1706262643819,-1993.31593212,0.00038258,3]
[312800002,1706262643828,-1948.20380237,0.00038294,3]
[312800004,1706262643838,-158.130944,0.0003883,2]
[312800006,1706262643846,-758.61723917,0.00039517,5]
[312800198,1706262647547,-1639.66796538,0.00039517,5]
[312800286,1706263047915,-660.0,0.0003,14]
[312800287,1706263109242,-3000.0,0.0003,14]
[312800288,1706263111341,-3000.0,0.0003,14]
[312800330,1706263831812,-1028.78827764,0.00028414,2]
[312800332,1706263831824,-429.58433863,0.00028414,2]
[312800380,1706263837866,-397.28957927,0.00028414,2]
[312800381,1706263837875,-165.37842073,0.00028414,2]
[312800382,1706263837928,-454.38844426,0.00028414,2]
[312800383,1706263837938,-2816.64859645,0.00028415,2]
[312800384,1706263837948,-680.48366856,0.00028416,2]
[312800385,1706263837957,-157.7467643,0.00028428,2]
[312800386,1706263837967,-3876.25837073,0.00028541,2]
[312800387,1706263837976,-214.536546,0.00028726,2]
[312800388,1706263837986,-283.02433484,0.00029,2]
[312800389,1706263837995,-270.99645224,0.0003,2]
[312800390,1706263838004,-5007.41831529,0.0003,3]
[312800391,1706263838014,-782.40027179,0.0003,14]
[312800392,1706263838024,-949.87454992,0.0003,4]
[312800393,1706263838033,-299.9437074,0.0003,14]
[312800394,1706263838042,-4291.23140072,0.0003,4]
[312800395,1706263838051,-1027.33391297,0.0003,2]
[312800396,1706263838061,-155.29114708,0.0003,4]
[312800397,1706263838070,-1827.38712364,0.0003,2]
[312800398,1706263838079,-167.511937,0.00030137,2]
[312800399,1706263838088,-2373.20128333,0.00031426,2]
[312800400,1706263838097,-7197.9837746,0.00031427,2]
[312800424,1706263841079,-7834.946698,0.00031427,2]
[312800425,1706263841090,-680.7197232,0.00031855,2]
[312800426,1706263841099,-176.135036,0.000319,4]
[312800427,1706263841111,-150.90945433,0.00032699,30]
[312800428,1706263841121,-589.0,0.00032811,2]
[312800429,1706263841131,-150.90945433,0.00033367,7]
[312800430,1706263841141,-150.90945433,0.00034047,4]
[312800431,1706263841151,-150.90945433,0.00034742,2]
[312800432,1706263841160,-592.53064848,0.00035,2]
[312800433,1706263841169,-977.70118808,0.00035998,2]
[312800435,1706263841178,-167.511937,0.00036986,2]
[312800436,1706263841187,-623.12340809,0.00037432,3]
[312800437,1706263841198,-5000.0,0.00037531,7]
[312800439,1706263841207,-12267.60075838,0.00037541,5]
[312800441,1706263841216,-5000.0,0.00037815,7]
[312800443,1706263841225,-7017.13,0.00037894,3]
[312800445,1706263841234,-576.0,0.000379,2]
[312800447,1706263841242,-3248.8715205,0.00037904,3]
[312800448,1706263841254,-109.69784494,0.00037904,3]
[312800449,1706263841264,-150.90945433,0.00038603,2]
[312800450,1706263841274,-250.34067559,0.00038603,2]
[312800451,1706263841283,-301.81890865,0.00039251,4]
[312800452,1706263841292,-1275.30456726,0.00039505,2]
[312800453,1706263841301,-454.77590654,0.00039517,4]
[312800454,1706263841310,-686.53509995,0.00039517,4]
[312800455,1706263841319,-329.5386459,0.00039705,4]
[312800456,1706263841331,-603.63781731,0.00039911,7]
[312800457,1706263841341,-777.0,0.00039933,2]
[312800458,1706263841351,-90.26831055,0.0003999,3]
[312800459,1706263841362,-843.94215077,0.0003999,3]
[312800460,1706263841373,-4229.24667376,0.0003999,3]
[312800503,1706263846651,-1.69454221,0.0003999,3]
[312800530,1706265034054,-599.46688406,0.00028236,2]
[312800578,1706265038109,-20.29998093,0.00028236,2]
[312800580,1706265038118,-680.48366856,0.00028237,2]
[312800582,1706265038127,-128.53406132,0.00028239,2]
[312800617,1706265041884,-154.93802479,0.00028235,2]
[312800618,1706265041893,-117.42621248,0.00028239,2]
[312800619,1706265041902,-717.806436,0.00028342,2]
[312800620,1706265041912,-2977.5109836,0.00029208,2]
[312800621,1706265041922,-32419.9722053,0.00029275,2]
[312800622,1706265041931,-214.536546,0.00029277,2]
[312800623,1706265041940,-989.01321,0.00029607,2]
[312800624,1706265041950,-195.54104758,0.0003,2]
[312800625,1706265041959,-163.34436665,0.00030026,2]
[312800626,1706265041968,-167.5119375,0.00030137,2]
[312800627,1706265041977,-170.79827,0.00030172,2]
[312800628,1706265041986,-19173.72058163,0.00031426,4]
[312800637,1706265049409,-2816.64859645,0.00028341,2]
[312800638,1706265049419,-3352.44320288,0.00031426,4]
[312800639,1706265049429,-25671.36157744,0.00031427,14]
[312800640,1706265049438,-150.47546686,0.00034847,2]
[312800641,1706265049447,-592.53064848,0.00035,2]
[312800642,1706265049457,-309.72125088,0.00035991,4]
[312800643,1706265049466,-5000.0,0.00037469,7]
[312800645,1706265049477,-373.74673727,0.00037469,3]
[312800646,1706265049486,-160.17717312,0.00037469,3]
[312800647,1706265049495,-5000.0,0.00037469,7]
[312800648,1706265049504,-1497.03106592,0.00037469,3]
[312800649,1706265049513,-4986.75,0.0003798,3]
[312800650,1706265049523,-211.032,0.0003799,2]
[312800651,1706265049532,-151.0,0.0003799,2]
[312800652,1706265049541,-3356.043357,0.0003799,2]
[312800653,1706265049550,-696.66267716,0.0003799,2]
[312800656,1706265591576,830.28,0.00024,2]
[312800657,1706265623996,154.93802479,0.00024,2]